{"text_format":"1","workbook":"xlsx","n_sheets":12,"sheets":["Dashboard","MSHEETS","COTIZACION","Parámetros","REGISTRO COTIZACIONES","DETALLE COTIZACIONES","PRODUCTOS","SEGUIMIENTO","DATOS_GENERALES","UBICACIONES","CLIENTES","Interfaz"],"not_rendered":{"charts":0,"images":16,"macros":1,"external_links":0,"defined_names":10,"comments":0,"pivot_tables":0},"unopened":[],"bounds":{"document_bytes":16777216,"sheet_cells":100000,"rows_first":2000,"rows_last":500,"rows_between":2000,"halvings":0,"cell_chars":16384,"cell_head_chars":4096},"cells_cut":0,"cells_raw":0,"read":"whole","date_system":"1900"}

{"sheet":"Dashboard","index":0,"n_rows":0,"n_cols":0,"rows_kept":0,"cut":false,"hidden":true,"merged":[]}

{"sheet":"MSHEETS","index":1,"n_rows":0,"n_cols":0,"rows_kept":0,"cut":false,"hidden":false,"merged":[]}

{"sheet":"COTIZACION","index":2,"n_rows":39,"n_cols":9,"rows_kept":39,"cut":false,"hidden":true,"merged":[]}
[]
[]
[null,null,null,null,null,null,null,"Cotización"]
[null,null,null,null,null,null,null,"Fecha:",{"$f":"IFERROR(IF(I5=\"\",\"\",INDEX(tbl_Cotizaciones[],MATCH(I5,tbl_Cotizaciones[ID_Cotización],0),2)),\"\")","v":""}]
[null,null,null,null,null,null,null,"N° cotización:",585]
[]
[null,null,null,null,null,null,null,"Cotización válida hasta:"]
[null,null,"Cliente:","MSHEETS",null,null,null,null,{"$f":"IFERROR(I4+NumCoti,\"\")","v":""}]
[null,null,"DNI / Ruc:",10000000001]
[null,null,"Dirección:","SAN ISIDRO"]
[null,null,"Atención:","MSHEETS"]
[null,null,"Teléfono:",982914663]
[]
[null,null,"Ítem","Código","Descripción","UM","Cantidad","Precio Unitario","Total"]
[null,null,1,"CORRCT","Servicio de correctivo\r\nTiempo de entrega: 04 Dias\r\nPlaca: \r\nModelo: ","SRV",1,100,100]
[]
[]
[]
[]
[]
[]
[]
[]
[]
[]
[]
[]
[null,null,null,"Condiciones Comerciales:",null,null,null,"Sub total:",{"$f":"SUM(I15:I27)","v":100}]
[null,null,null,"Moneda:","Soles (S/)",null,null,"IGV 18%:",18]
[null,null,null,"Garantia:","-",null,null,"TOTAL:",{"$f":"SUM(I28:I29)","v":118}]
[null,null,null,"Forma de Pago:","Contado"]
[null,null,null,"Entrega:","Entrega inmediata"]
[]
[{"$f":"IF(I29>0, \"Esta cotización es con IGV incluido\", \"Esta cotización no incluye IGV\")","v":"Esta cotización es con IGV incluido"}]
["Forma de pago:"]
["Mediante depósito o transferencia a la siguiente cuenta:"]
[null,null,null,"Banco Internacional del Perú (Interbank)"]
[null,null,null,"Cuenta en Soles: 8983-2890-6549-2"]
[null,null,null,"CCI: 002-8980-1328-9065-4924-5"]

{"sheet":"Parámetros","index":3,"n_rows":29,"n_cols":21,"rows_kept":29,"cut":false,"hidden":true,"merged":[]}
["Contraseña:",2025,"Ingreso rapido:",2025]
[]
["RUC:","-"]
["Razón Social:","Msheets"]
["Dirección:","Santiago de Surco"]
["Teléfono:","998-393-551"]
["Correo:","soporte@msheets.pro"]
["Dias de -valides de Coti",7]
[]
["Rubro",null,"Estado",null,"Acciones",null,"Motivos de la Acción",null,"Resultados",null,"Responsable",null,"Marca",null,"MEDIDAS","SIMBOLO",null,"Moneda","Garantías","Formas de Pago","Tipos de Entrega"]
["Edificios y condominios",null,"Prospección",null,"Llamada",null,"Prospección",null,"Interesado",null,"ALBERTO MONTELUIS",null,"MSHEETS",null,"Servicio","SRV",null,"Soles (S/)","-","Contado","Entrega inmediata"]
["Alimentación y Bebidas",null,"Primer Contacto",null,"Email",null,"Requerimiento de información",null,"No interesado",null,"BENIGNO ASPAJO",null,"Generica",null,"Unidad","UND",null,"Dolares ($)","Garantía de 3 meses","Crédito 15 días","Entrega en 24 horas"]
["Comercio",null,"Cliente Interesado",null,"WhatsApp",null,"Seguimiento",null,"Solicita más información",null,null,null,null,null,"Metro","MTR",null,"Euros","Garantía de 6 meses","Crédito 30 días","Entrega en 2-3 días"]
["Construcción",null,"Cliente Potencial",null,"Videollamada",null,"Presentación de producto",null,"Pendiente de respuesta",null,null,null,null,null,"Kilogramo","KG",null,null,"Garantía de 12 meses","Crédito 60 días","Entrega programada"]
["Educación",null,"Evaluación",null,"Visita",null,"Presentación de servicio",null,"Cita agendada",null,null,null,null,null,"Litro","LT",null,null,"Garantía de 24 meses","Pago en cuotas","Entrega bajo pedido"]
["Energía",null,"Propuesta",null,"Reunión",null,"Recordatorio",null,"Venta cerrada",null,null,null,null,null,"Hora","HR",null,null,"Garantía por defecto de fábrica",null,"Entrega digital inmediata"]
["Finanzas y Banca",null,"Negociación",null,"Cotización Enviada",null,"Soporte/Incidencia",null,"Cotización enviada",null,null,null,null,null,"Día","DIA",null,null,null,null,"Entrega con instalación"]
["Logística y Transporte",null,"Cierre de Venta",null,"Cierre de Venta",null,"Queja/Reclamo",null,"Requiere seguimiento",null,null,null,null,null,"Porcentaje","%"]
["Manufactura",null,"Eliminado",null,"Soporte / Consulta",null,"Renovación/Actualización",null,"No es el tomador de decisiones",null,null,null,null,null,"Pieza","PZA"]
["Marketing y Publicidad",null,null,null,"Capacitación",null,"Fidelización",null," ",null,null,null,null,null,"Paquete","PAQ"]
["Restaurante",null,null,null,"Demostración",null,"Encuesta de satisfacción",null,null,null,null,null,null,null,"Metro Cuadrado","M2"]
["Salud",null,null,null,"Encuesta de Satisfacción",null,"Otro",null,null,null,null,null,null,null,"Kilómetro","KM"]
["Servicios Profesionales",null,null,null,"Otro",null,null,null,null,null,null,null,null,null,"Gramo","GR"]
["Tecnología",null,null,null,null,null,null,null,null,null,null,null,null,null,"Mililitro","ML"]
["Telecomunicaciones",null,null,null,null,null,null,null,null,null,null,null,null,null,"Minuto","MIN"]
["Turismo y Hospitalidad",null,null,null,null,null,null,null,null,null,null,null,null,null,"Docena","DOC"]
[null,null,null,null,null,null,null,null,null,null,null,null,null,null,"Ciento","CTO"]
[null,null,null,null,null,null,null,null,null,null,null,null,null,null,"Global","GLB"]
[null,null,null,null,null,null,null,null,null,null,null,null,null,null,"Funciones","FUNC"]

{"sheet":"REGISTRO COTIZACIONES","index":4,"n_rows":3,"n_cols":10,"rows_kept":3,"cut":false,"hidden":true,"merged":[]}
[]
["ID_Cotización","Fecha_Cotización","ID_Cliente","Moneda","IGV_Aplica","Forma_Pago","Garantía","Entrega","Estado_Cotización","Total"]
[584,"2025-04-24",1,"Soles (PEN)","NO","Contado","-","Entrega inmediata","Pendiente",{"$f":"IF(tbl_Cotizaciones[[#This Row],[IGV_Aplica]]=\"SI\",SUMIFS(tbl_DetalleCotización[Total parcial],tbl_DetalleCotización[ID_Cotización],tbl_Cotizaciones[[#This Row],[ID_Cotización]])*1.18,SUMIFS(tbl_DetalleCotización[Total parcial],tbl_DetalleCotización[ID_Cotización],tbl_Cotizaciones[[#This Row],[ID_Cotización]]))","v":7700}]

{"sheet":"DETALLE COTIZACIONES","index":5,"n_rows":3,"n_cols":7,"rows_kept":3,"cut":false,"hidden":true,"merged":[]}
[]
["ID_Detalle","ID_Cotización","ID_Artículo","Detalle_Producto","Cantidad","Precio Unitario","Total parcial"]
[45,584,1,"Servicio Integral de Administración de Edificios y Condominio\r\nIncluye:\r\n- Conserje Diurno\r\n- Conserje Nocturno\r\n- Conserje de Descanso\r\n- Personal de Limpieza\r\n- Administración de Gastos Operativos\r\n- Personal de Jardinería",1,7700,7700]

{"sheet":"PRODUCTOS","index":6,"n_rows":3,"n_cols":7,"rows_kept":3,"cut":false,"hidden":true,"merged":[]}
[]
["ID_Artículo","Cod_Interno","Descripcion","Tipo","Marca","Unidad de medida","Precio_Sugerido"]
[1,"CTZP","Cotizador Premium","Servicio","MSHEETS","SRV",150]

{"sheet":"SEGUIMIENTO","index":7,"n_rows":3,"n_cols":9,"rows_kept":3,"cut":false,"hidden":true,"merged":[]}
[]
["ID Interacción","ID Cliente","Fecha de la acción","Tipo de acción","Motivo de la acción","Producto o servicio","Descripción breve","Responsable","Resultado"]
[1,1,"2025-03-14","Llamada","Prospección","Software ERP","Se presentó la empresa y los servicios","ALBERTO MONTELUIS","Interesado"]

{"sheet":"DATOS_GENERALES","index":8,"n_rows":28,"n_cols":8,"rows_kept":28,"cut":false,"hidden":true,"merged":[]}
["Cliente","DEMO 5.1.2",null,null,"Accesos",null,"Cliente ID:",{"$f":"MAX(tbl_Clientes[ID])+1","v":2}]
["DNI/RUC","-",null,null,"MONTELUIS2025",null,"Seguimiento ID:",{"$f":"MAX(tbl_Seguimiento[ID Interacción])+1","v":2}]
["Nombre Corto","DEMO",null,null,{"$f":"Parámetros!B1","v":2025},null,"Cotización:",{"$f":"MAX(tbl_Cotizaciones[ID_Cotización])+1","v":585}]
["N° Comprobante","DEMO-512",null,null,null,null,"Producto",{"$f":"MAX(tbl_Productos[ID_Artículo])+1","v":2}]
["Fecha de venta:","2025-07-07",null,null,"Dias de Licencia","Licencia:"]
[{"$f":"\"Doc: \"&B4","v":"Doc: DEMO-512"},null,null,null,3,{"$f":"B4&\"MS\"&TEXT(MOD(((TODAY() + YEAR(TODAY())*MONTH(TODAY())*DAY(TODAY()))*1234567+98765),10000000000),\"0000000000\")","v":"DEMO-512MS9098733455"}]
["Ultima Modificación","2025-07-07"]
[null,null,null,null,"Dias Habilitados"]
[null,"Dias",null,null,{"$f":"E6-B11","v":3}]
["Tiempo de venta",{"$f":"TODAY()-B5","v":0},{"$f":"CONCATENATE(DATEDIF(DATE(2024,1,1), DATE(2024,1,1)+B10-1, \"M\"), \" meses y \",\nDATE(2024,1,1)+B10-1 - DATE(YEAR(DATE(2024,1,1)+B10-1), MONTH(DATE(2024,1,1)+B10-1), 1), \" días\")","v":{"$error":"#NUM!"}}]
["Tiempo de ultima modificación",{"$f":"TODAY()-B7","v":0},{"$f":"CONCATENATE(DATEDIF(DATE(2024,1,1), DATE(2024,1,1)+B11-1, \"M\"), \" meses y \",\nDATE(2024,1,1)+B11-1 - DATE(YEAR(DATE(2024,1,1)+B11-1), MONTH(DATE(2024,1,1)+B11-1), 1), \" días\")","v":{"$error":"#NUM!"}}]
[]
["id","Inicio","Final",null,{"$f":"INDEX(Saludos[],MATCH(RANDBETWEEN(1,15),Saludos[id],0),2)&\" \"&B3&\" \"&INDEX(Saludos[],MATCH(RANDBETWEEN(1,15),Saludos[id],0),3)","v":"¡Tu asistente financiero dice hola, DEMO ! Hoy es un buen día para tomar el control de tu dinero."}]
[1,"¡Hola de nuevo,","! Estoy listo/a para ayudarte con tus finanzas."]
[2,"¡Qué gusto verte,","! Vamos a hacer que cada peso cuente."]
[3,"¡Bienvenido/a de vuelta,","! Sigamos avanzando en tu camino financiero."]
[4,"¡Un placer recibirte,","! Hoy es un buen día para tomar el control de tu dinero."]
[5,"¡Aquí estamos otra vez,","! Vamos a revisar tus ingresos y gastos."]
[6,"¡Saludos cordiales,","! Recuerda que el control financiero es clave para el éxito."]
[7,"¡Hey,","! ¿Qué te gustaría analizar hoy?"]
[8,"¡Es un gran día para ti,","! Siempre es buen momento para mejorar tus finanzas."]
[9,"¡Qué alegría verte por aquí,","! Juntos lograremos que tu dinero trabaje para ti."]
[10,"¡Vamos a por ello,","! Un poco de organización y lograrás grandes cambios."]
[11,"¡Manos a la obra,","! Estoy aquí para hacerte la vida más fácil."]
[12,"¡Preparado/a para optimizar tus finanzas,","! Vamos a darle seguimiento a tu progreso financiero."]
[13,"¡Tu asistente financiero dice hola,","! La constancia es la clave del éxito financiero."]
[14,"¡Aquí listo/a para ayudarte,","! Un pequeño ajuste puede hacer una gran diferencia."]
[15,"¡De vuelta al control financiero,","! Vamos a asegurarnos de que cada gasto valga la pena."]

{"sheet":"UBICACIONES","index":9,"n_rows":52,"n_cols":4,"rows_kept":52,"cut":false,"hidden":true,"merged":[]}
[]
["Departamento","Provincia","Distrito","Ubicación Geográfica"]
["Lima","Lima","Lima","Centro"]
["Lima","Lima","Ancón","Centro"]
["Lima","Lima","Ate","Centro"]
["Lima","Lima","Barranco","Centro"]
["Lima","Lima","Breña","Centro"]
["Lima","Lima","Carabayllo","Centro"]
["Lima","Lima","Chaclacayo","Centro"]
["Lima","Lima","Chorrillos","Centro"]
["Lima","Lima","Cieneguilla","Centro"]
["Lima","Lima","Comas","Centro"]
["Lima","Lima","El Agustino","Centro"]
["Lima","Lima","Independencia","Centro"]
["Lima","Lima","Jesús María","Centro"]
["Lima","Lima","La Molina","Centro"]
["Lima","Lima","La Victoria","Centro"]
["Lima","Lima","Lince","Centro"]
["Lima","Lima","Los Olivos","Centro"]
["Lima","Lima","Lurigancho","Centro"]
["Lima","Lima","Lurín","Centro"]
["Lima","Lima","Magdalena del Mar","Centro"]
["Lima","Lima","Pueblo Libre","Centro"]
["Lima","Lima","Miraflores","Centro"]
["Lima","Lima","Pachacámac","Centro"]
["Lima","Lima","Pucusana","Centro"]
["Lima","Lima","Puente Piedra","Centro"]
["Lima","Lima","Punta Hermosa","Centro"]
["Lima","Lima","Punta Negra","Centro"]
["Lima","Lima","Rímac","Centro"]
["Lima","Lima","San Bartolo","Centro"]
["Lima","Lima","San Borja","Centro"]
["Lima","Lima","San Isidro","Centro"]
["Lima","Lima","San Juan de Lurigancho","Centro"]
["Lima","Lima","San Juan de Miraflores","Centro"]
["Lima","Lima","San Luis","Centro"]
["Lima","Lima","San Martín de Porres","Centro"]
["Lima","Lima","San Miguel","Centro"]
["Lima","Lima","Santa Anita","Centro"]
["Lima","Lima","Santa María del Mar","Centro"]
["Lima","Lima","Santa Rosa","Centro"]
["Lima","Lima","Santiago de Surco","Centro"]
["Lima","Lima","Surquillo","Centro"]
["Lima","Lima","Villa El Salvador","Centro"]
["Lima","Lima","Villa María del Triunfo","Centro"]
["Callao","Callao","Callao","Centro"]
["Callao","Callao","Bellavista","Centro"]
["Callao","Callao","Carmen de la Legua Reynoso","Centro"]
["Callao","Callao","La Perla","Centro"]
["Callao","Callao","La Punta","Centro"]
["Callao","Callao","Ventanilla","Centro"]
["Callao","Callao","Mi Perú","Centro"]

{"sheet":"CLIENTES","index":10,"n_rows":3,"n_cols":30,"rows_kept":3,"cut":false,"hidden":true,"merged":[]}
[]
["ID","Tipo de Doc","N° de Doc","Razón Social","Nombre Comercial","Dirección","Coordenadas","Departamento","Provincia","Distrito","Nombre","Cargo","Codigo","Número","Fijo","Correo","OBS","Tipo de Cliente","Rubro","Tamaño","Estado","Web","Facebook","WhatsApp","Instagram","TikTok","LinkedIn","Ultimo Seguimiento","Días sin contacto","Tarea"]
[1,"RUC",10000000001,"MSHEETS","MSHEETS","SAN ISIDRO",null,"Lima","Lima","Lima","MSHEETS","ANALISTA",51,982914663,"-","soporte@msheets.pro",null,"Cliente final",null,"Microempresa","Primer Contacto",null,null,null,null,null,null,{"$f":"IFERROR(\n    _xlfn.AGGREGATE(\n        14,\n        6,\n        (tbl_Seguimiento[Fecha de la acción]) / (tbl_Seguimiento[ID Cliente] = tbl_Clientes[[#This Row],[ID]]),\n        1\n    ),\n    \"Sin seguimiento\"\n)","v":"2025-03-14"},{"$f":"IFERROR(TODAY()-tbl_Clientes[[#This Row],[Ultimo Seguimiento]],\"Sin seguimiento\")","v":115},"LISTO"]

{"sheet":"Interfaz","index":11,"n_rows":0,"n_cols":0,"rows_kept":0,"cut":false,"hidden":true,"merged":[]}